bitfinex-derivatives/quotes_BTCF0:USTF0_20251214
["timestamp","ask_amount","ask_price","bid_price","bid_amount"]
[1765730121835,0.05704852,89061.0,89060.0,0.05777]
[1765730122143,0.05704852,89061.0,89060.0,0.05677]
[1765730122441,0.05804852,89061.0,89060.0,0.05777]
[1765730124147,0.08313693,89061.0,89060.0,0.05777]
[1765730125238,0.08314331,89061.0,89060.0,0.05777]
[1765730129651,0.09437061,89061.0,89060.0,0.05777]
[1765730130845,0.02726331,89061.0,89060.0,0.05777]
[1765730131551,0.08601331,89061.0,89060.0,0.05777]
[1765730135154,0.02726331,89061.0,89060.0,0.05777]
[1765730137148,0.08601331,89061.0,89060.0,0.05777]
[1765730143948,0.08601331,89061.0,89060.0,0.001]
[1765730144153,0.44681331,89061.0,89060.0,0.001]
[1765730148255,0.05875,89055.0,89054.0,1.5112282]
[1765730148461,0.08384479,89055.0,89054.0,1.5112282]
[1765730150559,0.08484479,89055.0,89054.0,1.5132282]
[1765730150958,0.08484479,89055.0,89054.0,1.5297082]
[1765730151559,0.14643111,89055.0,89054.0,1.5287082]
[1765730153068,0.14543111,89055.0,89054.0,1.5287082]
[1765730153268,0.08584479,89055.0,89054.0,1.5287082]
[1765730153568,0.02609479,89055.0,89054.0,1.5277082]
[1765730153869,0.02709479,89055.0,89054.0,1.5287082]
[1765730154858,0.05632479,89055.0,89054.0,1.5287082]
[1765730157572,0.02709479,89055.0,89054.0,1.5287082]
[1765730157763,0.05632479,89055.0,89054.0,1.5287082]
[1765730158864,0.02709479,89055.0,89054.0,1.5287082]
[1765730159370,0.05632479,89055.0,89054.0,1.5287082]
[1765730159763,0.02709479,89055.0,89054.0,1.5287082]
[1765730161572,0.08768111,89055.0,89054.0,1.5287082]
[1765730161968,0.14572111,89055.0,89054.0,0.001]
[1765730162169,0.44593479,89055.0,89054.0,0.001]
[1765730162376,0.0692695,89044.0,89031.0,0.3608]
[1765730162574,0.069271,89032.0,89031.0,0.0553]
[1765730162765,0.09436579,89032.0,89031.0,0.0553]
[1765730163374,0.08313479,89032.0,89031.0,0.0553]
[1765730163763,0.08313479,89032.0,89031.0,0.0573]
[1765730163960,0.08413479,89032.0,89031.0,0.0573]
[1765730165777,0.08313479,89032.0,89031.0,0.0553]
[1765730165977,0.08413479,89032.0,89031.0,0.0563]
[1765730171679,0.05904,89032.0,89031.0,0.0563]
[1765730175576,0.001,89032.0,89031.0,0.0563]
[1765730176274,0.05899,89032.0,89031.0,0.0563]
[1765730178085,0.05899,89032.0,89031.0,1.5563]
[1765730179294,0.001,89032.0,89031.0,1.5563]
[1765730179786,0.00016852,89040.0,89039.0,0.0680501]
[1765730180496,0.02875852,89040.0,89039.0,0.0680501]
[1765730181188,0.05815852,89040.0,89039.0,0.0680501]
[1765730181390,0.08343698,89040.0,89039.0,0.0680501]
[1765730181795,0.08543698,89040.0,89039.0,0.06282]
[1765730182886,0.08543698,89040.0,89039.0,0.0740501]
[1765730183691,0.00216852,89040.0,89039.0,0.0740501]
[1765730184181,0.00216852,89040.0,89039.0,0.4348501]
[1765730184582,0.0692179,89057.0,89056.0,0.05682]
[1765730184783,0.05387733,89057.0,89056.0,0.0680479]
[1765730185294,0.02528733,89057.0,89056.0,0.0680479]
[1765730185787,0.02628733,89057.0,89056.0,0.0680479]
[1765730185992,0.05587733,89057.0,89056.0,0.0690479]
[1765730186194,0.08527733,89057.0,89056.0,0.0690479]
[1765730186989,0.08427733,89057.0,89056.0,0.0680479]
[1765730187189,0.08527733,89057.0,89056.0,0.0690479]
[1765730188384,0.08427733,89057.0,89056.0,0.0690479]
[1765730188585,0.08527733,89057.0,89056.0,0.0690479]
[1765730188891,0.09650513,89057.0,89056.0,0.05782]
[1765730189192,0.09650513,89057.0,89056.0,0.001]
[1765730189593,0.09650513,89057.0,89056.0,0.02996]
[1765730189894,0.09650513,89057.0,89056.0,0.05777]
[1765730190588,0.02728733,89057.0,89056.0,0.05777]
[1765730191594,0.05679733,89057.0,89056.0,0.05777]
[1765730191798,0.02728733,89057.0,89056.0,0.05777]
[1765730192001,0.02728733,89057.0,89056.0,0.41857]
[1765730193199,0.08673733,89057.0,89056.0,0.41857]
[1765730193501,0.09796513,89057.0,89056.0,0.001]
[1765730193890,0.09796513,89057.0,89056.0,0.02996]
[1765730194090,0.09796513,89057.0,89056.0,0.05777]
[1765730194395,0.08673733,89057.0,89056.0,0.05777]
[1765730200902,0.02728733,89057.0,89056.0,0.05777]
[1765730201407,0.002,89057.0,89056.0,0.05777]
[1765730203006,0.08672913,89057.0,89056.0,0.05777]
[1765730212709,0.08672913,89057.0,89056.0,0.001]
[1765730212904,0.50810741,89057.0,89056.0,0.001]
[1765730213104,0.44752913,89057.0,89056.0,0.001]
[1765730214613,0.44752913,89057.0,89048.0,0.00016852]
[1765730214614,0.0706788,89049.0,89048.0,0.00016852]
[1765730214809,0.13122795,89049.0,89048.0,0.00016852]
[1765730215002,0.15650708,89049.0,89048.0,0.00016852]
[1765730215205,0.05945,89037.0,89026.0,0.3608]
[1765730215515,0.05945,89032.0,89031.0,1.5112311]
[1765730215704,0.08472913,89032.0,89031.0,1.5112311]
[1765730216603,0.08472913,89032.0,89031.0,1.5122311]
[1765730217204,0.08472913,89032.0,89031.0,1.501]
[1765730217513,0.08572913,89032.0,89031.0,1.503]
[1765730217913,0.08472913,89032.0,89031.0,1.501]
[1765730218099,0.08572913,89032.0,89031.0,1.503]
[1765730219014,0.08572913,89032.0,89031.0,0.003]
[1765730219402,0.08572913,89032.0,89031.0,0.06136]
[1765730219602,0.08572913,89032.0,89031.0,0.003]
[1765730220310,0.50706642,89032.0,89031.0,0.003]
[1765730220517,0.50706642,89032.0,89006.0,0.00011065]
[1765730220518,0.05897,89007.0,89006.0,0.06970485]
[1765730221014,0.05897,89007.0,89006.0,1.56970485]
[1765730221221,0.39063,89013.0,89012.0,0.0874035]
[1765730221511,0.011232,89025.0,89020.0,0.0695925]
[1765730221512,0.76197,89021.0,89020.0,0.0695925]
[1765730221721,0.05913852,89021.0,89020.0,0.0695925]
[1765730222710,0.00016852,89021.0,89020.0,0.0695925]
[1765730222910,0.3608,89051.0,89020.0,0.0695925]
[1765730222911,0.39063,89037.0,89036.0,0.0695905]
[1765730223110,0.011229,89048.0,89047.0,0.05836]
[1765730223308,0.773239,89048.0,89047.0,0.05836]
[1765730223510,0.79840752,89048.0,89047.0,0.05836]
[1765730224221,0.81584752,89048.0,89047.0,0.05836]
[1765730225721,0.80461852,89048.0,89047.0,0.05836]
[1765730225921,0.78717852,89048.0,89047.0,0.05836]
[1765730226312,0.09013852,89048.0,89047.0,0.06036]
[1765730226812,0.08713852,89048.0,89047.0,0.05936]
[1765730227011,0.08913852,89048.0,89047.0,0.06036]
[1765730227616,0.08613852,89048.0,89047.0,0.05936]
[1765730227918,0.08613852,89048.0,89047.0,0.0883991]
[1765730227919,0.004,89048.0,89047.0,0.0883991]
[1765730233024,0.06297,89048.0,89047.0,0.0416691]
[1765730233217,0.06297,89048.0,89047.0,0.001]
[1765730233826,0.10558165,89048.0,89047.0,0.001]
[1765730234526,0.08814165,89048.0,89047.0,0.05936]
[1765730236328,0.05900165,89048.0,89047.0,0.05936]
[1765730237023,0.08814165,89048.0,89047.0,0.05936]
[1765730237220,0.05900165,89048.0,89047.0,0.05936]
[1765730237420,0.004,89048.0,89047.0,0.05936]
[1765730238920,0.06297,89048.0,89047.0,0.05936]
[1765730239923,0.004,89048.0,89047.0,0.05936]
[1765730241231,0.00016852,89056.0,89055.0,0.0695881]
[1765730242823,0.00616852,89056.0,89055.0,0.0715881]
[1765730243620,0.00116852,89056.0,89055.0,0.0695881]
[1765730243820,0.00216852,89056.0,89055.0,0.0705881]
[1765730244327,0.0701961,89071.0,89070.0,0.0695862]
[1765730244631,0.05482059,89071.0,89070.0,0.0695862]
[1765730244830,0.08396059,89071.0,89070.0,0.0695862]
[1765730245838,0.08696059,89071.0,89070.0,0.0705862]
[1765730246132,0.08996059,89071.0,89070.0,0.0705862]
[1765730246837,0.08896059,89071.0,89070.0,0.0705862]
[1765730248536,0.005,89071.0,89070.0,0.0705862]
[1765730249631,0.03431,89071.0,89070.0,0.0705862]
[1765730249835,0.06423,89071.0,89070.0,0.0705862]
[1765730250934,0.06423,89071.0,89070.0,0.001]
[1765730251139,0.08920239,89071.0,89070.0,0.001]
[1765730251435,0.45000239,89071.0,89070.0,0.001]
[1765730251648,0.51043103,89071.0,89070.0,0.001]
[1765730252340,0.45000239,89071.0,89070.0,0.001]
[1765730252938,0.0704571,89063.0,89062.0,0.00016842]
[1765730253137,0.45622949,89063.0,89062.0,0.00016842]
[1765730254033,0.51667329,89063.0,89062.0,0.00016842]
[1765730254837,0.51867329,89063.0,89062.0,0.00116842]
[1765730255239,0.45822949,89063.0,89062.0,0.03076842]
[1765730255547,1.21036082,89063.0,89062.0,0.06075842]
[1765730255731,1.20936082,89063.0,89062.0,0.05975842]
[1765730255936,1.21136082,89063.0,89062.0,0.06075842]
[1765730256132,1.21436082,89063.0,89062.0,0.03176842]
[1765730256333,1.15388239,89063.0,89062.0,0.00216842]
[1765730256537,0.02931,89037.0,89036.0,0.4316205]
[1765730256750,0.0704592,89047.0,89046.0,0.0296]
[1765730256944,0.09548278,89047.0,89046.0,0.05959]
[1765730257137,0.08425358,89047.0,89046.0,0.0708192]
[1765730257947,0.08525358,89047.0,89046.0,0.0718192]
[1765730258736,0.08625358,89047.0,89046.0,0.0718192]
[1765730260850,0.08625358,89047.0,89046.0,0.06059]
[1765730268654,0.10252358,89047.0,89046.0,0.06059]
[1765730269047,0.08625358,89047.0,89046.0,0.06059]
[1765730270349,0.10252358,89047.0,89046.0,0.06059]
[1765730270550,0.08625358,89047.0,89046.0,0.06059]
[1765730272256,0.03131,89047.0,89046.0,0.06059]
[1765730272643,0.06123,89047.0,89046.0,0.06059]
[1765730273745,0.06123,89047.0,89046.0,0.07291]
[1765730273943,0.002,89047.0,89046.0,0.07291]
[1765730274636,0.06123,89047.0,89046.0,0.07291]
[1765730275545,0.06123,89047.0,89046.0,0.06059]
[1765730276553,0.06117,89047.0,89046.0,0.07705]
[1765730276756,0.06117,89047.0,89046.0,0.06059]
[1765730279243,0.08646192,89047.0,89046.0,0.06059]
[1765730280551,0.08646192,89047.0,89046.0,0.07705]
[1765730280760,0.08646192,89047.0,89046.0,0.06059]
[1765730289361,0.08646192,89047.0,89046.0,0.07705]
[1765730289557,0.09769102,89047.0,89046.0,0.001]
[1765730289757,0.45849102,89047.0,89046.0,0.001]
[1765730290569,0.0688401,89039.0,89038.0,0.00016842]
[1765730290752,0.09413202,89039.0,89038.0,0.00016842]
[1765730291767,0.09513202,89039.0,89038.0,0.00316842]
[1765730292362,0.45593202,89039.0,89038.0,0.00316842]
[1765730292661,0.45593202,89039.0,89038.0,0.06018842]
[1765730295361,0.08390192,89039.0,89038.0,0.06018842]
[1765730297368,0.09513202,89039.0,89038.0,0.06018842]
[1765730297567,0.08390192,89039.0,89038.0,0.06018842]
[1765730298559,0.09513202,89039.0,89038.0,0.06018842]
[1765730298872,0.09513202,89039.0,89038.0,0.03164842]
[1765730299259,0.09513202,89039.0,89038.0,0.06018842]
[1765730299867,0.09513202,89039.0,89038.0,0.07141862]
[1765730299868,0.05594192,89039.0,89038.0,0.07141862]
[1765730300269,0.001,89039.0,89038.0,0.07141862]
[1765730302774,0.05861,89039.0,89038.0,0.07141862]
[1765730303365,0.03065,89039.0,89038.0,0.07141862]
[1765730303570,0.001,89039.0,89038.0,0.07141862]
[1765730308384,0.03065,89039.0,89038.0,0.07141862]
[1765730309076,0.05647,89039.0,89038.0,0.07141862]
[1765730309463,0.02899,89039.0,89038.0,0.07141862]
[1765730311569,0.02899,89039.0,89038.0,0.43221862]
[1765730312380,0.05647,89039.0,89038.0,0.43221862]
[1765730312969,0.02899,89039.0,89038.0,0.43221862]
[1765730315370,0.05647,89039.0,89038.0,0.43221862]
[1765730318773,0.02899,89039.0,89038.0,0.43221862]
[1765730318973,0.001,89039.0,89038.0,0.43221862]
[1765730321668,0.02899,89039.0,89038.0,0.43221862]
[1765730322273,0.001,89039.0,89038.0,0.43221862]
[1765730322881,0.05647,89039.0,89038.0,0.43221862]
[1765730323886,0.02899,89039.0,89038.0,0.43221862]
[1765730324085,0.05647,89039.0,89038.0,0.43221862]
[1765730324487,0.02899,89039.0,89038.0,0.43221862]
[1765730324782,0.001,89039.0,89038.0,0.43221862]
[1765730328394,0.05547,89054.0,89053.0,0.1001683]
[1765730328589,0.08109247,89054.0,89053.0,0.08894]
[1765730328892,0.08109247,89054.0,89053.0,0.0591]
[1765730329785,0.08309247,89054.0,89053.0,0.0601]
[1765730329985,0.08609247,89054.0,89053.0,0.0601]
[1765730330385,0.08409247,89054.0,89053.0,0.0601]
[1765730330594,0.08609247,89054.0,89053.0,0.0601]
[1765730331194,0.08409247,89054.0,89053.0,0.0601]
[1765730331393,0.08609247,89054.0,89053.0,0.0601]
[1765730331790,0.08309247,89054.0,89053.0,0.0591]
[1765730331993,0.08509247,89054.0,89053.0,0.0601]
[1765730332495,0.08409247,89054.0,89053.0,0.0601]
[1765730332893,0.08409247,89054.0,89053.0,0.001]
[1765730333092,0.05547,89044.0,89043.0,0.0703295]
[1765730333294,0.08109247,89044.0,89043.0,0.0703295]
[1765730335184,0.08209247,89044.0,89043.0,0.0713295]
[1765730336088,0.08209247,89044.0,89043.0,0.0723295]
[1765730336291,0.08209247,89044.0,89043.0,0.0611]
[1765730337293,0.08209247,89044.0,89043.0,0.0601]
[1765730337594,0.02662247,89044.0,89043.0,0.0601]
[1765730339782,0.02562247,89044.0,89043.0,0.0611]
[1765730339988,0.02662247,89044.0,89043.0,0.0621]
[1765730341098,0.05536631,89044.0,89043.0,0.0621]
[1765730341397,0.08336631,89044.0,89043.0,0.0621]
[1765730342296,0.08236631,89044.0,89043.0,0.0591]
[1765730342495,0.08336631,89044.0,89043.0,0.0611]
[1765730343294,0.08336631,89044.0,89043.0,0.0601]
[1765730344895,0.08336631,89044.0,89043.0,0.001]
[1765730345094,0.0683901,89039.0,89038.0,0.05797842]
[1765730345393,0.09359641,89039.0,89038.0,0.05797842]
[1765730345584,0.08236631,89039.0,89038.0,0.05797842]
[1765730346297,0.08336631,89039.0,89038.0,0.06097842]
[1765730346499,0.02620631,89039.0,89038.0,0.06097842]
[1765730351902,0.001,89039.0,89038.0,0.06097842]
[1765730352104,0.05735,89039.0,89038.0,0.06097842]
[1765730353600,0.05735,89039.0,89038.0,0.06094842]
[1765730354405,0.001,89039.0,89038.0,0.06094842]
[1765730363105,0.001,89039.0,89038.0,0.42174842]
[1765730369202,0.05745,89039.0,89038.0,0.42174842]
[1765730369903,0.001,89039.0,89038.0,0.42174842]
[1765730375517,0.05551842,89055.0,89054.0,0.05834]
[1765730375711,0.08064955,89055.0,89054.0,0.05834]
[1765730376105,0.08064955,89055.0,89054.0,0.08053786]
[1765730376702,0.08064955,89055.0,89054.0,0.0695682]
[1765730376896,0.08364955,89055.0,89054.0,0.0695682]
[1765730377304,0.08364955,89055.0,89054.0,0.0705682]
[1765730377505,0.08564955,89055.0,89054.0,0.0705682]
[1765730378103,0.09956955,89055.0,89054.0,0.05934]
[1765730378404,0.09856955,89055.0,89054.0,0.05934]
[1765730379711,0.08264955,89055.0,89054.0,0.05934]
[1765730379912,0.05535,89054.0,89053.0,0.0112282]
[1765730380097,0.05535,89054.0,89053.0,0.0405682]
[1765730380098,0.08048113,89054.0,89053.0,0.0405682]
[1765730380303,0.08048113,89054.0,89053.0,0.05834]
[1765730380814,0.0665783,89053.0,89052.0,0.0405683]
[1765730381010,0.09170943,89053.0,89052.0,0.0405683]
[1765730381214,0.09170943,89053.0,89052.0,0.0695683]
[1765730383020,0.09170943,89053.0,89052.0,0.001]
[1765730383021,0.09370943,89053.0,89052.0,0.001]
[1765730383413,0.09370943,89053.0,89044.0,0.0112294]
[1765730383414,0.0772093,89045.0,89044.0,0.0405694]
[1765730383714,0.10234043,89045.0,89044.0,0.0695694]
[1765730384613,0.10334043,89045.0,89044.0,0.0695694]
[1765730385717,0.10334043,89045.0,89044.0,0.0405694]
[1765730386016,0.05535,89041.0,89040.0,0.0695698]
[1765730386214,0.08048113,89041.0,89040.0,0.0695698]
[1765730387616,0.08148113,89041.0,89040.0,0.0705698]
[1765730387813,0.09271093,89041.0,89040.0,0.0705698]
[1765730388018,0.09271093,89041.0,89040.0,0.0122298]
[1765730388206,0.09271093,89041.0,89040.0,0.0415698]
[1765730388407,0.09271093,89041.0,89040.0,0.05934]
[1765730388608,0.09271093,89041.0,89040.0,0.001]
[1765730389109,0.09171093,89041.0,89040.0,0.02934]
[1765730389310,0.09271093,89041.0,89040.0,0.03034]
[1765730389816,0.09371093,89041.0,89040.0,0.001]
[1765730390614,0.09471093,89041.0,89040.0,0.001]
[1765730390822,0.05535,89039.0,89038.0,0.00016842]
[1765730391120,0.08048113,89039.0,89038.0,0.00016842]
[1765730391816,0.08048113,89039.0,89038.0,0.05850842]
[1765730393023,0.08348113,89039.0,89038.0,0.05950842]
[1765730393514,0.08248113,89039.0,89038.0,0.06050842]
[1765730393816,0.08148113,89039.0,89038.0,0.06050842]
[1765730394021,0.08148113,89039.0,89038.0,0.06150842]
[1765730394215,0.08148113,89039.0,89038.0,0.03250842]
[1765730394523,0.08148113,89039.0,89038.0,0.06150842]
[1765730394719,0.08248113,89039.0,89038.0,0.06050842]
[1765730395520,0.08248113,89039.0,89038.0,0.05950842]
[1765730395921,0.08148113,89039.0,89038.0,0.05850842]
[1765730396121,0.08248113,89039.0,89038.0,0.05950842]
[1765730396312,0.08348113,89039.0,89038.0,0.05950842]
[1765730397018,0.08148113,89039.0,89038.0,0.05950842]
[1765730397319,0.08248113,89039.0,89038.0,0.05950842]
[1765730398117,0.08148113,89039.0,89038.0,0.05950842]
[1765730398333,0.08248113,89039.0,89038.0,0.05950842]
[1765730402216,0.08148113,89039.0,89038.0,0.05950842]
[1765730402523,0.08248113,89039.0,89038.0,0.02939842]
[1765730402731,0.08248113,89039.0,89038.0,0.05697842]
[1765730404829,0.08148113,89039.0,89038.0,0.05597842]
[1765730405029,0.08248113,89039.0,89038.0,0.05697842]
[1765730405229,0.08148113,89039.0,89038.0,0.05697842]
[1765730405428,0.08248113,89039.0,89038.0,0.05697842]
[1765730406128,0.08148113,89039.0,89038.0,0.05697842]
[1765730406327,0.08248113,89039.0,89038.0,0.05697842]
[1765730408730,0.44328113,89039.0,89038.0,0.00116842]
[1765730408923,0.08248113,89039.0,89038.0,0.05969842]
[1765730409120,0.02713113,89039.0,89038.0,0.05969842]
[1765730409528,0.08608113,89039.0,89038.0,0.05969842]
[1765730411322,0.08508113,89039.0,89038.0,0.05969842]
[1765730411519,0.08608113,89039.0,89038.0,0.05969842]
[1765730411826,0.08508113,89039.0,89038.0,0.05869842]
[1765730412028,0.08608113,89039.0,89038.0,0.06069842]
[1765730412230,0.08508113,89039.0,89038.0,0.06169842]
[1765730414233,0.08408113,89039.0,89038.0,0.05869842]
[1765730414435,0.08508113,89039.0,89038.0,0.06169842]
[1765730415221,0.02613113,89039.0,89038.0,0.06169842]
[1765730415729,0.05549113,89039.0,89038.0,0.06069842]
[1765730415931,0.05995,89039.0,89038.0,0.06169842]
[1765730416326,0.08498833,89039.0,89038.0,0.06169842]
[1765730417322,0.08498936,89039.0,89038.0,0.06169842]
[1765730417831,0.05995,89039.0,89038.0,0.06169842]
[1765730418219,0.001,89039.0,89038.0,0.06169842]
[1765730418424,0.05995,89039.0,89038.0,0.06169842]
[1765730420129,0.001,89039.0,89038.0,0.06169842]
[1765730422332,0.001,89039.0,89038.0,0.13749842]
[1765730425840,0.001,89039.0,89038.0,0.85909842]
[1765730426840,0.02901,89039.0,89038.0,0.85909842]
[1765730427734,0.001,89039.0,89038.0,0.85909842]
[1765730429848,0.02901,89039.0,89038.0,0.85909842]
[1765730430048,0.05858,89039.0,89038.0,0.85909842]
[1765730430242,0.02901,89039.0,89038.0,0.85909842]
[1765730430444,0.02855,89039.0,89038.0,0.85909842]
[1765730430754,0.001,89039.0,89038.0,0.85909842]
[1765730431453,0.05812,89039.0,89038.0,0.85909842]
[1765730432550,0.05812,89039.0,89038.0,0.78329842]
[1765730437359,0.08334737,89039.0,89038.0,0.78329842]
[1765730437863,0.08334737,89039.0,89038.0,0.42249842]
[1765730446564,0.08334737,89039.0,89038.0,0.06169842]
[1765730454467,0.08334737,89039.0,89038.0,0.00316842]
[1765730454863,0.08334737,89039.0,89038.0,0.03250842]
[1765730455062,0.08334737,89039.0,89038.0,0.06082842]
[1765730463281,0.08334737,89039.0,89038.0,1.56082842]
[1765730465179,0.08734737,89039.0,89038.0,1.55882842]
[1765730465882,0.08434737,89039.0,89038.0,1.55882842]
[1765730466182,0.08634737,89039.0,89038.0,1.55882842]
[1765730466382,0.08634737,89039.0,89038.0,1.50116842]
[1765730466576,0.08434737,89039.0,89038.0,0.00016842]
[1765730466879,0.08634737,89039.0,89038.0,0.00116842]
[1765730467080,0.08634737,89039.0,89023.0,1.5]
[1765730467081,0.067432,89024.0,89023.0,1.5]
[1765730467269,0.10197304,89024.0,89023.0,1.5]
[1765730468480,0.10857938,89024.0,89023.0,1.504]
[1765730468881,0.10857938,89024.0,89023.0,0.004]
[1765730469468,0.10957938,89024.0,89023.0,0.003]
[1765730469873,0.0674329,89017.0,89016.0,1.5]
[1765730470079,0.09276394,89017.0,89016.0,1.5]
[1765730471182,0.09276394,89017.0,89016.0,1.501]
[1765730471590,0.09376394,89017.0,89016.0,1.504]
[1765730472387,0.0684329,89017.0,89016.0,1.504]
[1765730481990,0.09427106,89017.0,89016.0,1.504]
[1765730484692,0.03807106,89017.0,89016.0,1.52127]
[1765730485195,0.02683816,89017.0,89016.0,1.52127]
[1765730485381,0.001,89017.0,89016.0,1.52127]
[1765730485586,0.00016842,89032.0,89031.0,0.05856]
[1765730485785,0.0112296,89043.0,89031.0,0.3608]
[1765730485996,0.0112296,89043.0,89042.0,0.05856]
[1765730486198,0.0385396,89043.0,89042.0,0.05856]
[1765730486691,0.0385396,89043.0,89042.0,0.0697897]
[1765730486888,0.0112296,89043.0,89042.0,0.0697897]
[1765730487084,0.02713,89047.0,89046.0,0.05841]
[1765730487286,0.011229,89048.0,89047.0,0.05841]
[1765730487793,0.038359,89048.0,89047.0,0.0696391]
[1765730488000,0.02713,89048.0,89047.0,0.0696391]
[1765730489395,0.02813,89048.0,89047.0,0.0696391]
[1765730489591,0.02913,89048.0,89047.0,0.0706391]
[1765730489994,0.001,89048.0,89047.0,0.0706391]
[1765730490194,0.002,89048.0,89047.0,0.0706391]
[1765730490594,0.02913,89048.0,89047.0,0.0706391]
[1765730491196,0.05671,89048.0,89047.0,0.0706391]
[1765730491997,0.05671,89048.0,89047.0,0.05941]
[1765730492199,0.0669389,89048.0,89047.0,0.05941]
[1765730492398,0.0679389,89048.0,89047.0,0.05941]
[1765730493289,0.0669389,89048.0,89047.0,0.05841]
[1765730493491,0.0679389,89048.0,89047.0,0.05941]
[1765730493800,0.0669389,89048.0,89047.0,0.05941]
[1765730493988,0.0679389,89048.0,89047.0,0.05941]
[1765730494389,0.0669389,89048.0,89047.0,0.05841]
[1765730494598,0.0679389,89048.0,89047.0,0.05941]
[1765730495498,0.0689389,89048.0,89047.0,0.05941]
[1765730495799,0.003,89048.0,89047.0,0.05941]
[1765730496000,0.004,89048.0,89047.0,0.05941]
[1765730496388,0.005,89048.0,89047.0,0.05941]
[1765730496594,0.003,89048.0,89047.0,0.05841]
[1765730496899,0.00016842,89051.0,89050.0,0.07577]
[1765730497692,0.02729842,89051.0,89050.0,0.07577]
[1765730499004,0.00116842,89051.0,89050.0,0.07577]
[1765730499399,0.00216842,89051.0,89050.0,0.07677]
[1765730500807,0.3608,89062.0,89050.0,0.07677]
[1765730500808,0.38793,89062.0,89061.0,0.0696373]
[1765730500996,0.38648973,89062.0,89061.0,0.0696373]
[1765730501302,0.41361973,89062.0,89061.0,0.0696373]
[1765730501496,0.38793,89062.0,89061.0,0.0696373]
[1765730501905,0.41551,89062.0,89061.0,0.0696373]
[1765730502100,0.41551,89062.0,89061.0,0.0706373]
[1765730502300,0.41951,89062.0,89061.0,0.0706373]
[1765730503007,0.05871,89062.0,89061.0,0.0706373]
[1765730503198,0.004,89062.0,89061.0,0.0706373]
[1765730506208,0.00191608,89062.0,89061.0,0.0706373]
[1765730506812,0.00016842,89070.0,89069.0,0.0696363]
[1765730506999,0.00016842,89070.0,89069.0,0.4304363]
[1765730508200,0.02729842,89070.0,89069.0,0.4304363]
[1765730508410,0.05487842,89070.0,89069.0,0.4304363]
[1765730508610,0.05587842,89070.0,89069.0,0.4334363]
[1765730508805,0.05587842,89070.0,89069.0,0.06341]
[1765730509004,0.05487842,89070.0,89069.0,0.06041]
[1765730509304,0.05587842,89070.0,89069.0,0.06441]
[1765730509700,0.05587842,89070.0,89069.0,0.06241]
[1765730510306,0.00116842,89070.0,89069.0,0.06241]
[1765730511005,0.00116842,89070.0,89069.0,0.06041]
[1765730511405,0.00116842,89070.0,89069.0,0.06241]
[1765730512402,0.00116842,89070.0,89069.0,0.06341]
[1765730512605,0.06710462,89070.0,89069.0,0.03169]
[1765730512898,0.06710462,89070.0,89069.0,0.06341]
[1765730513100,0.06710462,89070.0,89069.0,0.06441]
[1765730513500,0.00116842,89070.0,89069.0,0.42321]
[1765730513709,0.00116842,89070.0,89069.0,0.42621]
[1765730514308,0.00116842,89070.0,89069.0,0.42321]
[1765730514503,0.00116842,89070.0,89069.0,0.42521]
[1765730514703,0.00116842,89070.0,89069.0,0.42421]
[1765730515606,0.00116842,89070.0,89069.0,0.06341]
[1765730515809,0.00116842,89070.0,89069.0,0.06141]
[1765730516003,0.00116842,89070.0,89069.0,0.06441]
[1765730516404,0.05546842,89070.0,89069.0,0.06441]
[1765730516818,0.00116842,89070.0,89069.0,0.06341]
[1765730517508,0.00116842,89070.0,89069.0,0.06241]
[1765730518108,0.00016842,89070.0,89069.0,0.06041]
[1765730518419,0.00116842,89070.0,89069.0,0.06341]
[1765730518603,0.01239462,89070.0,89069.0,0.06341]
[1765730518804,0.01239462,89070.0,89069.0,0.06241]
[1765730519006,0.03801419,89070.0,89069.0,0.06241]
[1765730519610,0.03801419,89070.0,89069.0,0.06341]
[1765730520214,0.02678799,89070.0,89069.0,0.06341]
[1765730520513,0.05642799,89070.0,89069.0,0.06241]
[1765730520710,0.10155799,89070.0,89069.0,0.06241]
[1765730520912,0.05642799,89070.0,89069.0,0.0736363]
[1765730521118,0.05642799,89070.0,89069.0,0.06241]
[1765730521317,0.05643468,89070.0,89069.0,0.06241]
[1765730521511,0.08360468,89070.0,89069.0,0.06241]
[1765730522008,0.08360468,89070.0,89069.0,0.06141]
[1765730522313,0.08360468,89070.0,89069.0,0.06241]
[1765730522516,0.08360468,89070.0,89069.0,0.06041]
[1765730522703,0.08360468,89070.0,89069.0,0.06241]
[1765730522905,0.08360468,89070.0,89069.0,0.06041]
[1765730523109,0.10156468,89070.0,89069.0,0.06141]
[1765730526230,0.10156468,89070.0,89069.0,0.06041]
[1765730526918,0.10156468,89070.0,89069.0,0.05841]
[1765730527113,0.10156468,89070.0,89069.0,0.05941]
[1765730528914,0.10156468,89070.0,89069.0,0.06041]
[1765730529829,0.10156468,89070.0,89069.0,0.05941]
[1765730530514,0.10156468,89070.0,89069.0,0.06041]
[1765730530925,0.10156468,89070.0,89069.0,0.002]
[1765730531120,0.10156468,89070.0,89069.0,0.003]
[1765730531620,0.10156468,89070.0,89069.0,0.06104]
[1765730531621,0.08360468,89070.0,89069.0,0.06104]
[1765730531925,0.08360468,89070.0,89069.0,0.06004]
[1765730532320,0.10156468,89070.0,89069.0,0.06004]
[1765730533423,0.10056468,89070.0,89069.0,0.05804]
[1765730533623,0.10156468,89070.0,89069.0,0.05904]
[1765730535013,0.08360468,89070.0,89069.0,0.05904]
[1765730535217,0.10156468,89070.0,89069.0,0.05904]
[1765730536227,0.10156468,89070.0,89069.0,0.06004]
[1765730536928,0.10056468,89070.0,89069.0,0.05804]
[1765730537128,0.10156468,89070.0,89069.0,0.06004]
[1765730537528,0.10056468,89070.0,89069.0,0.05804]
[1765730537828,0.10156468,89070.0,89069.0,0.05904]
[1765730538627,0.10056468,89070.0,89069.0,0.05804]
[1765730538828,0.10156468,89070.0,89069.0,0.06004]
[1765730539323,0.10156468,89070.0,89069.0,0.002]
[1765730539531,0.10156468,89070.0,89053.0,0.05820842]
[1765730539532,0.0680382,89054.0,89053.0,0.05820842]
[1765730539826,0.09366446,89054.0,89053.0,0.00016842]
[1765730540420,0.02964,89037.0,89036.0,0.0692704]
[1765730540620,0.08243626,89037.0,89036.0,0.0692704]
[1765730541525,0.02562626,89037.0,89036.0,0.0692704]
[1765730541725,0.08248028,89042.0,89041.0,0.05804]
[1765730543222,0.05681,89042.0,89041.0,0.05804]
[1765730543622,0.05681,89042.0,89041.0,0.05904]